bitfinex-derivatives/quotes_ETHF0:USTF0_20251028
["timestamp","ask_amount","ask_price","bid_price","bid_amount"]
[1761685421600,3.2078,3968.3,3968.2,0.7913]
[1761685421795,0.3338,3968.9,3967.6,3.3411]
[1761685421796,3.2078,3968.8,3968.4,0.331]
[1761685422003,0.217,3968.5,3968.4,0.331]
[1761685422498,0.217,3968.5,3968.4,0.5577]
[1761685423109,3.2078,3968.8,3968.5,0.331]
[1761685423298,3.5416,3968.8,3968.5,0.331]
[1761685423609,3.2078,3968.8,3968.7,0.7913]
[1761685425609,3.7586,3968.8,3968.7,0.5577]
[1761685426311,3.9784,3968.8,3968.4,0.331]
[1761685426503,0.3338,3968.7,3968.4,0.331]
[1761685427310,0.5508,3968.4,3968.0,3.2078]
[1761685427522,0.217,3967.4,3967.3,0.331]
[1761685427913,0.217,3967.4,3966.9,0.13646088]
[1761685427914,3.5416,3968.0,3967.4,0.331]
[1761685428208,0.3338,3967.9,3967.4,0.331]
[1761685429813,3.2078,3968.0,3967.9,0.2267]
[1761685430012,3.2078,3968.0,3967.9,0.7913]
[1761685431716,3.2078,3968.6,3968.0,0.331]
[1761685432120,0.60153959,3968.5,3968.0,0.331]
[1761685432318,3.2078,3968.6,3968.0,0.331]
[1761685432720,0.217,3968.1,3968.0,0.331]
[1761685433021,0.217,3968.1,3968.0,0.5577]
[1761685433616,3.2078,3968.6,3968.1,0.331]
[1761685433824,0.93576133,3968.5,3968.1,0.331]
[1761685434122,0.3338,3968.5,3968.1,0.331]
[1761685434517,3.2078,3968.6,3968.4,0.4603]
[1761685434722,3.2078,3968.6,3968.5,0.7913]
[1761685434921,3.4248,3968.6,3968.5,0.7913]
[1761685435123,0.217,3968.6,3968.5,0.7913]
[1761685435317,0.217,3968.6,3968.5,0.5577]
[1761685435525,0.5508,3968.6,3968.5,0.5577]
[1761685435720,3.5416,3969.1,3968.6,0.331]
[1761685435919,0.6020757,3969.0,3968.9,0.5577]
[1761685436121,0.8190757,3969.0,3968.9,0.5577]
[1761685436325,0.3338,3968.9,3968.5,0.331]
[1761685436622,0.20224533,3969.2,3968.1,0.331]
[1761685436623,0.3338,3968.5,3968.1,0.331]
[1761685436818,0.217,3968.2,3968.1,0.5577]
[1761685437413,0.3338,3969.0,3968.7,0.331]
[1761685437627,0.60241444,3968.9,3968.8,0.5577]
[1761685437925,0.81941444,3968.9,3968.8,0.5577]
[1761685439226,0.217,3968.6,3968.5,0.331]
[1761685439529,0.4368,3968.6,3968.5,0.2267]
[1761685439822,0.3338,3968.8,3968.5,0.7913]
[1761685440028,0.60263975,3968.7,3968.6,0.5577]
[1761685440219,0.60263975,3968.7,3968.6,0.7913]
[1761685440422,1.15343975,3968.7,3968.6,0.7913]
[1761685440626,1.37323975,3968.7,3968.1,0.331]
[1761685440821,0.3338,3968.5,3968.1,0.331]
[1761685441123,0.7706,3968.1,3968.0,3.2078]
[1761685441322,0.60401886,3968.1,3967.6,0.5577]
[1761685441522,0.60401886,3968.0,3967.9,0.7913]
[1761685441833,3.2078,3968.3,3968.2,0.5577]
[1761685442026,4.02880468,3968.3,3968.2,0.5577]
[1761685442223,0.4368,3967.7,3967.6,3.2078]
[1761685442428,1.37428665,3967.7,3967.6,3.2078]
[1761685443432,1.04048665,3967.7,3967.6,3.9991]
[1761685443724,1.04048665,3967.7,3967.6,3.7655]
[1761685443930,4.178,3967.8,3967.7,0.5577]
[1761685444128,0.4368,3967.7,3967.6,3.7655]
[1761685444527,3.961,3967.8,3967.7,0.5577]
[1761685444725,4.56539744,3967.8,3967.7,0.7913]
[1761685444926,4.78239744,3967.8,3967.7,0.7913]
[1761685446128,5.11619744,3967.8,3967.7,0.7913]
[1761685446334,0.7706,3967.7,3967.6,3.2078]
[1761685446633,0.4368,3967.7,3967.6,3.7655]
[1761685446831,3.4248,3968.3,3968.2,0.2267]
[1761685447032,3.2078,3968.8,3968.2,3.9991]
[1761685447227,3.2078,3968.8,3968.7,0.7913]
[1761685447427,3.8206886,3968.8,3968.7,0.7913]
[1761685448329,0.3264,3969.1,3968.8,0.3456]
[1761685448537,0.6128019,3969.0,3968.8,0.3456]
[1761685448731,0.3264,3969.1,3968.8,0.3456]
[1761685448932,0.61280423,3969.0,3968.8,0.3456]
[1761685449229,0.3264,3969.1,3968.8,0.3456]
[1761685449433,0.2292,3968.9,3968.8,0.5646]
[1761685449637,0.84214618,3968.9,3968.8,0.5646]
[1761685450133,0.7849,3968.7,3968.6,3.5443]
[1761685450332,0.61294618,3968.9,3967.9,0.3365]
[1761685450333,0.3368,3968.2,3967.9,0.3365]
[1761685450638,4.5306,3968.8,3968.7,0.5533]
[1761685450826,5.14384577,3968.8,3968.7,0.5533]
[1761685451032,0.61324577,3968.8,3968.7,3.9782]
[1761685451333,3.5446,3969.3,3968.7,3.9782]
[1761685451334,3.2078,3969.3,3969.2,0.7704]
[1761685451728,0.00181047,3969.5,3969.4,0.2168]
[1761685452034,0.00181047,3969.5,3969.4,0.7704]
[1761685452235,3.64735623,3970.3,3970.2,0.5533]
[1761685452537,4.19945623,3970.3,3969.8,0.3365]
[1761685452723,0.3368,3970.2,3969.8,0.3365]
[1761685452931,0.2328,3969.9,3969.8,0.3365]
[1761685453129,0.2328,3969.9,3969.8,0.33826569]
[1761685453130,0.57171499,3969.9,3969.8,0.33826569]
[1761685453535,0.78701499,3969.9,3969.8,0.00176569]
[1761685454144,0.78701499,3969.9,3969.8,0.33826569]
[1761685454639,0.78701499,3969.9,3969.8,0.55506569]
[1761685455039,0.45021499,3969.9,3969.8,0.55506569]
[1761685455232,0.23491499,3969.9,3969.8,0.55506569]
[1761685455633,0.23491499,3969.9,3969.8,0.77216569]
[1761685455634,0.00211499,3969.9,3969.8,0.77216569]
[1761685455834,0.1419,3971.4,3970.6,0.7704]
[1761685455835,3.2078,3971.1,3970.6,0.7704]
[1761685456136,3.2078,3971.5,3971.4,0.7704]
[1761685456530,0.2328,3971.3,3971.2,0.3365]
[1761685457039,0.23495637,3971.3,3971.2,0.5533]
[1761685457438,0.00215637,3971.3,3971.2,0.7704]
[1761685460234,0.23495637,3971.3,3971.2,0.7704]
[1761685461040,0.00215637,3971.3,3971.2,0.7704]
[1761685461336,0.00215637,3971.3,3971.2,3.9782]
[1761685461541,3.2078,3972.7,3972.6,0.7704]
[1761685461736,0.1324,3973.9,3972.7,0.7704]
[1761685461737,3.2078,3973.1,3972.7,0.7704]
[1761685462430,0.024294,3972.8,3972.7,0.77268985]
[1761685463248,3.2078,3973.1,3973.0,0.7704]
[1761685463537,0.3368,3974.0,3973.1,0.3365]
[1761685463741,0.53952665,3974.0,3973.1,0.3365]
[1761685464239,0.54137843,3974.0,3973.1,0.3365]
[1761685464642,0.00185178,3974.0,3973.1,0.3365]
[1761685465038,0.00185178,3974.0,3972.8,3.967]
[1761685465039,0.00185178,3974.0,3973.9,0.9105]
[1761685465436,3.5446,3975.7,3975.3,0.3365]
[1761685465738,3.5446,3975.7,3974.6,0.1401]
[1761685465739,0.5696,3975.4,3974.7,0.3365]
[1761685465935,3.2078,3975.1,3974.7,0.3365]
[1761685466341,3.20957045,3975.1,3974.7,0.3365]
[1761685466539,3.20957045,3975.1,3975.0,0.5533]
[1761685466944,0.00177045,3975.1,3975.0,0.7704]
[1761685468144,0.00177045,3975.1,3975.0,0.8456]
[1761685468339,3.2078,3976.5,3976.4,0.7704]
[1761685468738,3.2078,3976.9,3976.8,0.5533]
[1761685469042,3.2078,3976.9,3976.8,0.7704]
[1761685469346,0.00192637,3976.9,3976.8,0.77271722]
[1761685470443,0.57152637,3976.9,3976.8,0.00231722]
[1761685470742,0.00192637,3976.9,3976.8,0.55561722]
[1761685471139,0.00192637,3976.9,3976.8,0.77271722]
[1761685471946,0.23472637,3976.9,3976.8,0.55561722]
[1761685472146,0.57152637,3976.9,3976.8,0.00231722]
[1761685472447,0.23472637,3976.9,3976.8,0.33881722]
[1761685474446,0.78682637,3976.9,3976.8,0.00231722]
[1761685474844,0.3368,3976.8,3975.8,0.3365]
[1761685475146,3.2078,3976.3,3976.2,0.5533]
[1761685475952,3.2078,3976.3,3976.2,0.55617518]
[1761685476446,3.5446,3976.7,3976.3,0.3365]
[1761685476651,0.3368,3976.6,3976.3,0.3365]
[1761685477943,0.2328,3976.4,3976.3,0.3365]
[1761685478143,0.7849,3976.3,3976.2,0.00287518]
[1761685478451,3.9927,3976.3,3976.2,0.00287518]
[1761685484140,0.3378,3976.2,3974.9,0.3332]
[1761685484346,0.3378,3976.2,3974.9,0.569]
[1761685484347,0.799,3975.0,3974.9,0.569]
[1761685485050,0.4612,3974.7,3974.0,3.2078]
[1761685485254,0.799,3974.1,3974.0,0.00251802]
[1761685485442,0.80119016,3974.1,3974.0,0.00251802]
[1761685485639,0.46339016,3974.1,3974.0,0.33571802]
[1761685485845,3.2078,3975.2,3975.1,0.7904]
[1761685486043,3.2078,3975.7,3975.6,0.569]
[1761685486251,4.6024884,3975.7,3974.7,0.3332]
[1761685486455,0.5956884,3975.6,3974.7,0.3332]
[1761685486747,0.00183132,3975.6,3974.7,0.3332]
[1761685487256,3.2078,3975.3,3974.7,0.3332]
[1761685487459,0.00183132,3975.6,3975.5,0.7904]
[1761685490354,0.60036743,3975.6,3975.5,0.7904]
[1761685490654,0.83456743,3975.6,3975.5,0.569]
[1761685490961,4.04236743,3975.6,3975.5,0.569]
[1761685492150,0.60036743,3975.6,3975.5,0.7904]
[1761685492556,4.82413344,3976.7,3976.6,0.2358]
[1761685492752,5.05833344,3976.7,3976.6,0.2358]
[1761685492954,3.7798,3976.7,3976.6,0.2358]
[1761685493166,0.3378,3976.6,3976.1,0.3332]
[1761685493348,1.23406376,3976.5,3976.1,0.3332]
[1761685493551,1.23406376,3976.4,3976.1,0.3332]
[1761685493755,1.23406376,3976.4,3976.3,0.2358]
[1761685494362,0.3378,3976.4,3976.3,0.2358]
[1761685494558,0.572,3976.4,3976.3,0.2358]
[1761685494758,1.46861424,3976.4,3976.3,0.2358]
[1761685495260,0.572,3976.4,3976.3,0.2358]
[1761685496758,0.572,3975.8,3975.7,0.569]
[1761685497056,0.3378,3976.0,3975.7,0.7904]
[1761685497255,0.3378,3976.0,3975.6,3.2078]
[1761685497256,0.89584381,3976.3,3976.2,0.7904]
[1761685497468,0.00180059,3976.5,3976.4,0.7904]
[1761685497657,0.3378,3975.9,3975.8,0.2358]
[1761685497960,0.572,3975.9,3975.8,0.4572]
[1761685498557,0.572,3975.9,3975.8,0.7904]
[1761685498958,0.572,3975.9,3975.8,0.4572]
[1761685500060,0.572,3975.9,3975.8,0.7904]
[1761685500255,0.89438465,3976.1,3976.0,0.4572]
[1761685500565,0.89438465,3976.1,3975.3,0.1289]
[1761685500566,0.1313,3976.2,3975.6,3.541]
[1761685500759,0.2342,3975.5,3975.4,0.3332]
[1761685500962,0.572,3974.9,3974.8,3.2078]
[1761685501157,0.2342,3974.6,3974.0,3.54351802]
[1761685501461,0.3378,3974.4,3974.0,0.33571802]
[1761685501658,0.3378,3974.4,3972.2,1.79626029]
[1761685501659,0.3378,3973.6,3972.9,0.3332]
[1761685501967,0.89555129,3973.6,3973.5,0.7904]
[1761685502261,0.3378,3973.6,3973.5,0.4572]
[1761685502663,0.34093291,3973.6,3973.5,0.46020586]
[1761685502857,0.00313291,3973.6,3973.5,0.79340586]
[1761685503960,0.34093291,3973.6,3973.5,0.46020586]
[1761685504460,0.89555129,3974.6,3974.5,0.4572]
[1761685504763,0.3378,3975.4,3974.7,0.3332]
[1761685504959,0.572,3974.4,3973.7,0.3332]
[1761685505162,0.3378,3974.4,3973.9,0.3332]
[1761685505563,3.2078,3974.2,3973.5,0.33620586]
[1761685505859,0.59050275,3974.1,3973.5,0.33620586]
[1761685506056,0.3378,3973.9,3973.5,0.33620586]
[1761685506457,0.00312117,3974.4,3974.3,0.7904]
[1761685506764,0.00312117,3974.4,3973.7,0.3332]
[1761685506765,0.57512117,3974.4,3973.7,0.3332]
[1761685506964,0.57512117,3974.4,3973.8,0.3332]
[1761685507164,0.00312117,3974.4,3974.3,0.7904]
[1761685509761,1.09808968,3975.7,3974.3,0.7904]
[1761685509762,3.5279,3976.3,3976.0,0.3404]
[1761685510161,0.3201,3976.1,3975.5,0.3404]
[1761685510362,0.3201,3975.6,3975.5,0.2322]
[1761685510568,3.5279,3975.9,3975.6,0.5726]
[1761685510768,0.32288663,3975.9,3975.7,0.3404]
[1761685511366,0.00278663,3975.9,3975.8,0.7915]
[1761685512467,0.00278663,3975.9,3975.8,3.9993]
[1761685512863,0.3201,3976.9,3975.8,4.0745]
[1761685513068,3.5279,3977.1,3976.8,0.5726]
[1761685513267,3.2078,3977.5,3977.4,0.7915]
[1761685513469,3.2078,3977.5,3977.4,0.9244]
[1761685513679,0.022,3977.8,3977.7,0.7915]
[1761685514175,0.55799851,3977.8,3977.7,0.00268994]
[1761685514364,0.02469851,3977.8,3977.7,0.57528994]
[1761685515170,0.02469851,3977.8,3977.7,0.79418994]
[1761685515776,0.02469851,3977.8,3977.7,0.45378994]
[1761685515972,0.34479851,3977.8,3977.7,0.23488994]
[1761685516977,0.02469851,3977.8,3977.7,0.23488994]
[1761685517177,0.02469851,3977.8,3977.7,0.57528994]
[1761685517580,0.02469851,3977.8,3977.7,0.79418994]
[1761685518280,0.02469851,3977.8,3977.7,0.86938994]
[1761685518477,0.02469851,3977.8,3977.7,0.79418994]
[1761685519379,3.2078,3978.5,3977.7,1.01452994]
[1761685519682,3.2078,3978.5,3978.4,0.7915]
[1761685520276,0.3201,3978.4,3977.9,0.3404]
[1761685520474,0.7585,3977.8,3977.7,0.00268994]
[1761685520677,0.7585,3977.8,3977.7,0.23488994]
[1761685520678,0.3201,3977.8,3977.7,0.23488994]
[1761685520883,0.3201,3978.0,3977.9,0.2322]
[1761685521573,0.5333,3978.0,3977.9,0.2322]
[1761685522076,0.5423,3977.8,3977.7,0.00268994]
[1761685522381,0.5423,3977.8,3977.7,0.23668994]
[1761685522591,0.7715,3977.8,3977.7,0.00268994]
[1761685524184,0.7715,3977.8,3976.4,0.3464]
[1761685524185,0.3191,3977.7,3976.4,0.3464]
[1761685524375,3.5269,3977.2,3976.4,0.3464]
[1761685524776,0.3191,3977.1,3976.4,0.3464]
[1761685524981,0.3191,3977.1,3976.4,0.34951831]
[1761685525177,0.5423,3976.5,3976.4,0.00311831]
[1761685525378,0.7715,3976.5,3976.4,0.00311831]
[1761685525982,0.7715,3975.5,3975.4,3.2078]
[1761685526184,0.3191,3975.9,3975.5,0.3464]
[1761685526481,0.3191,3975.9,3975.3,0.02509989]
[1761685526482,0.3191,3975.6,3975.3,0.37149989]
[1761685526877,0.3191,3975.9,3975.6,0.3464]
[1761685527077,0.7715,3975.4,3975.3,0.02509989]
[1761685527380,0.7715,3975.4,3975.3,0.02804911]
[1761685528689,0.3191,3975.7,3975.3,0.60844911]
[1761685528884,0.3191,3975.7,3975.4,0.3464]
[1761685530286,0.5423,3975.4,3975.3,0.02804911]
[1761685530481,0.2232,3975.4,3975.3,0.26204911]
[1761685530785,0.7715,3975.4,3975.3,0.02804911]
[1761685531882,0.3191,3974.6,3973.9,0.4775]
[1761685532684,0.3191,3974.6,3974.0,0.3464]
[1761685532886,0.3191,3974.6,3974.0,0.34841695]
[1761685533582,0.3191,3974.5,3974.0,0.34841695]
[1761685534586,0.3191,3974.5,3974.4,0.234]
[1761685535083,0.3191,3974.5,3974.4,0.5804]
[1761685535285,0.3191,3974.5,3974.0,0.00201695]
[1761685535286,0.7715,3974.5,3974.0,0.00201695]
[1761685535491,0.3191,3974.2,3974.1,0.234]
[1761685535987,0.3191,3974.8,3974.4,0.8085]
[1761685536206,3.2078,3974.9,3974.7,0.4621]
[1761685536391,1.47262694,3976.7,3974.1,0.0752]
[1761685536392,3.5269,3976.1,3975.8,0.234]
[1761685536584,0.3191,3976.7,3976.1,0.3464]
[1761685536893,3.2078,3976.9,3976.7,0.3464]
[1761685537082,3.2078,3977.3,3977.2,0.234]
[1761685537282,0.3191,3977.2,3976.4,3.2078]
[1761685537482,0.32176585,3977.2,3976.4,3.55597656]
[1761685537683,0.32176585,3977.2,3976.4,3.20957656]
[1761685537885,0.32176585,3977.2,3976.5,0.3464]
[1761685538085,0.5423,3976.5,3976.4,0.00177656]
[1761685538385,0.3191,3977.1,3976.4,0.58217656]
[1761685538692,0.3191,3977.1,3976.4,0.23577656]
[1761685539095,0.7715,3976.5,3976.4,0.00177656]
[1761685539882,0.5423,3976.5,3976.4,0.22497656]
[1761685540087,0.3191,3976.5,3976.4,0.22497656]
[1761685540295,3.21046585,3977.2,3976.4,0.22497656]
[1761685540490,0.7817,3976.5,3976.4,0.00177656]
[1761685542295,0.3419,3976.7,3976.5,0.2232]
[1761685542594,0.7817,3976.5,3976.4,0.00177656]
[1761685546602,0.3419,3976.4,3975.3,0.3261]
[1761685546791,0.3419,3975.9,3975.3,0.3261]
[1761685547193,0.7817,3974.5,3974.4,3.2078]
[1761685547490,0.3419,3975.1,3974.5,0.3261]
[1761685548490,0.561,3974.5,3974.4,0.0028051]
[1761685548699,0.3419,3975.1,3974.4,0.5521051]
[1761685549198,0.3419,3975.1,3974.4,3.7599051]
[1761685549593,0.3419,3975.1,3974.5,0.3261]
[1761685549798,0.3419,3975.6,3975.2,0.3261]
[1761685549988,0.3419,3976.0,3975.7,0.5493]
[1761685550298,0.4398,3975.8,3975.0,3.2078]
[1761685550590,0.3419,3975.0,3974.7,0.3261]
[1761685550789,0.3419,3975.0,3974.6,3.5339]
[1761685550991,0.3419,3974.6,3974.4,0.0028051]
[1761685551291,0.561,3974.5,3974.4,0.0028051]
[1761685552588,0.561,3974.5,3974.4,0.2260051]
[1761685553200,0.3419,3974.7,3974.4,0.5521051]
[1761685553796,0.3419,3974.7,3974.6,0.2232]
[1761685554296,0.561,3974.6,3974.4,0.0028051]
[1761685554990,0.3419,3974.6,3974.5,0.5493]
[1761685555588,0.3419,3975.2,3974.5,0.5493]
[1761685556493,0.3419,3975.2,3974.6,0.3261]
[1761685557895,0.3419,3975.2,3975.1,0.2232]
[1761685558092,0.3419,3975.6,3975.3,0.3261]
[1761685558292,0.3419,3975.2,3974.8,0.3261]
[1761685558495,0.561,3974.8,3974.7,3.431]
[1761685558701,0.561,3974.8,3974.7,3.7571]
[1761685558900,0.3419,3975.2,3974.7,3.9858]
[1761685559394,0.3419,3975.2,3974.8,0.3261]
[1761685561200,3.5497,3975.7,3975.6,0.2232]
[1761685561400,3.2078,3975.7,3975.6,0.778]
[1761685561592,0.3419,3976.0,3975.9,0.2232]
[1761685561793,3.2078,3976.1,3976.0,0.2232]
[1761685561993,3.5497,3976.1,3976.0,0.2232]
[1761685562203,0.3419,3976.0,3975.5,0.3261]
[1761685562802,0.561,3976.0,3975.9,0.2232]
[1761685563900,0.7817,3975.2,3975.1,3.2078]
[1761685564199,0.3419,3975.1,3975.0,0.2232]
[1761685564395,0.1411,3975.3,3975.2,0.2232]
[1761685564396,0.561,3975.3,3975.2,0.2232]
[1761685564700,0.561,3975.3,3974.7,0.3261]
[1761685564701,0.3419,3975.2,3974.7,0.3261]
[1761685564900,0.3419,3975.2,3974.6,3.2078]
[1761685564901,0.7817,3974.7,3974.6,3.2078]
[1761685565592,0.3419,3975.2,3974.6,3.7571]
[1761685565788,3.3489,3975.3,3974.6,3.431]
[1761685565789,0.561,3974.7,3974.6,3.431]
[1761685566210,0.7817,3974.5,3974.0,3.2078]
[1761685566391,0.7817,3974.5,3973.7,4.2721]
[1761685567102,0.7817,3974.5,3973.7,0.3261]
[1761685568604,0.7817,3974.5,3974.1,3.2078]
[1761685568798,0.3419,3974.8,3974.5,0.2232]
[1761685570399,0.7794,3974.5,3974.4,0.0028051]
[1761685570594,3.9872,3974.5,3974.4,0.0028051]
[1761685570790,4.57013021,3974.5,3974.4,0.0028051]
[1761685571203,1.36233021,3974.5,3974.4,0.0028051]
[1761685571705,0.3341,3974.8,3974.7,0.216]
[1761685571902,0.2226,3974.6,3974.4,0.0028051]
[1761685572200,0.7794,3974.5,3974.4,0.0028051]
[1761685572794,4.570673,3974.5,3974.4,0.0028051]
[1761685572995,8.512673,3974.5,3974.4,0.0028051]
[1761685575897,4.570673,3974.5,3974.4,0.0028051]
[1761685576099,3.9872,3974.5,3974.4,0.0028051]
[1761685577603,0.7794,3974.5,3974.4,0.0028051]
[1761685579001,0.7794,3974.5,3974.4,0.2188051]
[1761685579206,0.5567,3974.9,3974.8,0.216]
[1761685581798,0.3341,3975.2,3974.9,0.3341]
[1761685581995,0.5567,3975.0,3974.9,0.5501]
[1761685582206,0.5567,3975.0,3974.9,0.216]
[1761685582797,0.3341,3975.2,3975.0,0.3341]
[1761685582998,0.3341,3975.4,3975.2,0.3341]
[1761685583201,0.3341,3975.4,3975.3,0.5501]
[1761685583906,0.3341,3975.4,3975.3,0.7672]
[1761685584505,0.7794,3975.4,3975.3,0.216]
[1761685585699,0.5567,3975.8,3975.7,0.5501]
[1761685586005,0.2226,3975.6,3975.5,3.2078]
[1761685586203,0.5567,3975.4,3975.3,0.5501]
[1761685586905,0.1411,3976.0,3975.3,0.7672]
[1761685587201,0.7794,3975.4,3975.1,3.2078]
[1761685587404,0.5567,3975.2,3975.1,3.4238]
[1761685587604,0.5567,3975.2,3975.1,3.975]
[1761685587901,0.3341,3975.9,3975.5,0.3341]
[1761685588101,0.5567,3975.6,3975.5,0.5501]
[1761685588710,0.5567,3975.6,3975.5,0.216]
[1761685588901,0.7794,3975.6,3975.5,0.216]
[1761685589301,0.2226,3975.2,3975.1,3.2078]
[1761685589496,0.7794,3975.2,3975.1,3.2078]
[1761685591508,0.7794,3974.7,3974.6,3.4238]
[1761685591707,0.7794,3974.7,3974.6,3.7579]
[1761685592499,0.7794,3974.7,3974.6,0.216]
[1761685593115,0.7794,3974.5,3974.4,0.0028051]
[1761685599306,3.9872,3974.5,3974.4,0.0028051]
[1761685601013,7.9202,3974.5,3974.4,0.0028051]
[1761685601217,8.05,3974.5,3974.4,0.0028051]
[1761685601712,3.6957,3975.0,3974.4,0.4577051]
[1761685601912,0.9046,3974.5,3974.4,0.0028051]
[1761685605216,0.2138,3974.0,3973.9,0.2268]
[1761685605419,0.2138,3974.0,3973.9,0.7824]
[1761685605918,0.5599,3974.0,3973.9,0.7824]
[1761685606112,0.56274616,3974.0,3973.9,0.78547705]
[1761685606613,0.90744616,3974.0,3973.9,0.00307705]
[1761685606823,0.4287,3972.9,3972.6,5.33156029]
[1761685607119,0.7748,3972.9,3972.8,0.25197116]
[1761685607713,0.7748,3972.9,3972.8,0.25508284]
[1761685608520,0.7748,3972.9,3972.8,0.81068284]
[1761685613024,0.561,3972.2,3972.1,3.2078]
[1761685613220,0.7748,3971.8,3971.7,3.2078]
[1761685614020,0.7748,3971.8,3971.7,3.21015755]
[1761685614325,4.0628,3972.5,3972.4,0.2268]
[1761685614326,0.6897,3972.5,3972.4,0.2268]
[1761685614617,3.6365,3972.8,3972.7,0.2268]
[1761685614823,0.2138,3972.6,3972.5,0.2268]
[1761685615015,0.9046,3972.6,3972.5,0.2268]
[1761685615215,0.5599,3972.3,3972.2,0.5543]
[1761685615519,0.7748,3972.2,3972.1,3.2078]
[1761685616217,0.7748,3972.2,3972.1,3.9902]
[1761685617424,0.7748,3972.2,3972.1,3.4346]
[1761685617617,0.5599,3972.1,3972.0,0.2268]
[1761685618013,0.7748,3972.1,3972.0,0.2268]
[1761685618225,0.5599,3972.1,3972.0,0.7824]
[1761685619019,0.5599,3972.1,3972.0,0.4549]
[1761685619317,0.7748,3972.1,3972.0,0.4549]
[1761685620423,0.7748,3972.1,3972.0,0.7824]
[1761685620724,0.7748,3972.1,3972.0,0.4549]
[1761685620924,0.7748,3972.1,3972.0,0.2268]
[1761685621523,0.5599,3971.8,3971.7,3.43695755]
[1761685621823,0.5599,3972.3,3972.2,0.2268]
[1761685622126,0.5599,3971.8,3971.7,3.99255755]
[1761685622329,0.7748,3971.8,3971.7,3.66505755]
[1761685622522,0.7748,3971.8,3971.7,3.99255755]
[1761685622721,0.5599,3971.8,3971.7,3.99255755]
[1761685623826,0.3461,3972.5,3972.1,0.3275]
[1761685624127,0.7748,3972.2,3972.1,0.5543]
[1761685624523,0.7748,3972.2,3972.1,0.2268]
[1761685625423,0.5518,3971.9,3971.8,0.5543]
[1761685625820,0.5518,3971.9,3971.8,0.7758]
[1761685626635,0.338,3972.5,3971.9,0.3509]
[1761685626929,0.5541,3972.0,3971.9,0.7917]
[1761685627324,0.9174,3972.0,3971.9,0.2193]
[1761685628125,0.5541,3972.0,3971.9,0.7917]
[1761685628628,0.4473,3971.8,3971.7,3.21015755]
[1761685628836,0.7853,3971.8,3971.7,0.00235755]
[1761685629529,0.7853,3971.8,3971.7,0.22165755]
[1761685630025,0.7853,3971.8,3971.7,0.00235755]
[1761685633227,0.8788,3970.5,3970.4,3.2078]
[1761685633525,0.7877,3970.1,3970.0,3.4288]
[1761685633737,0.7877,3970.1,3970.0,3.2078]
[1761685634130,0.79046712,3970.1,3970.0,3.21014008]
[1761685634534,0.79046712,3970.1,3970.0,0.00234008]
[1761685636136,0.00276712,3970.1,3970.0,1.26824008]
[1761685636336,1.24395129,3972.0,3971.9,0.8125]
[1761685636529,0.5788,3972.0,3971.9,3.6677]
[1761685636723,0.936,3972.0,3971.5,3.5604]
[1761685637035,0.3484,3971.5,3971.0,3.5604]
[1761685637233,0.5788,3971.2,3971.1,0.5809]
[1761685637436,0.5788,3971.2,3971.1,0.2283]
[1761685637633,0.5788,3971.2,3971.1,0.8125]
[1761685637841,0.00186087,3971.5,3971.4,0.8125]
[1761685638037,0.80246087,3971.5,3971.0,0.3526]
[1761685638227,0.3484,3970.9,3970.0,3.21014008]
[1761685638542,0.3484,3970.7,3970.0,3.21014008]
[1761685638933,0.3484,3970.7,3970.0,3.56274008]
[1761685639134,0.3484,3970.7,3970.1,0.3526]
[1761685639339,0.5788,3970.2,3970.1,0.5809]
[1761685639541,0.5788,3970.2,3970.1,0.2283]
[1761685640038,0.5788,3970.7,3970.6,0.2283]
[1761685640433,0.3484,3971.3,3970.7,0.3526]
[1761685640739,0.5788,3971.0,3970.9,0.5809]
[1761685641036,0.1354,3970.8,3970.4,0.3526]
[1761685641340,0.1354,3970.8,3970.0,2.73944168]
[1761685641639,0.1354,3970.8,3967.9,2.517]
[1761685641640,3.2078,3968.5,3964.4,3.2078]
[1761685641842,1.68598731,3973.8,3960.1,1.1363]
[1761685641843,76.14657716,3970.7,3964.9,1.80469436]
[1761685642133,27.6,3967.3,3962.4,0.1358]
[1761685642339,15.111,3965.7,3961.8,0.1358]
[1761685642531,15.111,3965.5,3960.8,0.1358]
[1761685642732,15.111,3965.5,3960.0,0.1358]
[1761685642733,7.0855595,3961.6,3960.0,0.1358]
[1761685643033,20.22757716,3961.5,3956.7,1.38828673]
[1761685643231,5.75548685,3958.9,3958.0,0.1358]
[1761685643440,4.39147624,3958.2,3958.0,0.1358]
[1761685643643,5.12257716,3958.1,3956.7,0.1358]
[1761685643832,0.58957716,3958.0,3957.8,0.1358]
[1761685644033,0.58957716,3957.9,3956.8,35.30393692]
[1761685644237,0.58957716,3957.8,3956.9,35.30393692]
[1761685644439,0.58957716,3957.7,3955.1,0.00738938]
[1761685644633,4.36352437,3956.3,3953.4,0.1358]
[1761685644948,0.58957716,3956.2,3955.6,0.1358]
[1761685645140,0.58957716,3956.1,3955.7,0.14977456]
[1761685645441,0.076,3955.5,3954.6,0.1358]
[1761685645643,5.63714675,3955.0,3953.4,0.1358]
[1761685645942,7.54468613,3954.4,3954.3,0.3526]
[1761685646148,7.54468613,3954.4,3953.5,29.12814105]
[1761685646149,9.56446329,3954.4,3953.5,29.12814105]
[1761685646342,3.02168976,3953.8,3953.3,0.1358]
[1761685646543,0.58957716,3953.7,3953.3,0.1358]
[1761685646843,3.02168976,3953.5,3953.4,29.12814105]
[1761685647045,3.2078,3954.3,3953.4,29.12814105]
[1761685647345,2.14763613,3954.7,3954.6,0.1358]
[1761685647545,2.04884432,3954.7,3954.6,0.1358]
[1761685647742,3.2078,3955.1,3954.6,22.54275528]
[1761685647944,3.2078,3956.1,3955.9,0.1358]
[1761685648245,0.2054589,3956.3,3956.0,0.3526]